Cogmind - Beta 15 @@@ ROGUE MODE // 2025.06.08 @ 16:27:46 // Winter2022/Polymind Player: jumpy Result: Destroyed by G-50 Soldier with Heavy Laser Performance ------------- Evolutions (5) 2500 Regions Visited (6) 1200 Robots Destroyed (0) 0 Value Destroyed (0) 0 Prototype IDs (0) 0 Alien Tech Used (0) 0 Bonus (3161) 3161 TOTAL SCORE: 6611 Bonus ------- Polymind Skill 1870 Pacifist 491 Registered with UFD 300 Met Optimus in HQ 500 Cogmind --------- Core Integrity 0/1000 Matter 0/0 Energy 25/25 System Corruption 1% Temperature Cool (9) Movement Core (50) Location -5/Extension Parts ------- > --- POWER (1) -------- (None) > --- PROPULSION (2) --- (None) > --- UTILITY (3) ------ Structural Scanner Terrain Scan Processor > --- WEAPON (1) ------- (None) > --- INVENTORY (0) ---- (None) Peak State ------------ > --- POWER ------------ Improved Ion Engine > --- PROPULSION ------- Compact Wheel Compact Wheel Compact Wheel Compact Wheel > --- UTILITY ---------- Medium Storage Unit High-powered Tractor Beam Field Recycling Unit > --- WEAPON ----------- (None) > --- INVENTORY -------- (None) [Rating: 12] Favorites ----------- Power Light Ion Engine Engine Light Ion Engine Propulsion Wheel Wheel Wheel Hover Unit Improved Hover Unit Utility Improved Terrain Scanner Device Improved Terrain Scanner Storage Medium Storage Unit Processor Terrain Scan Processor Hackware Hacking Suite Weapon Mining Laser Special Weapon Mining Laser Special Melee Weapon Datajack Build | -11 -10 -10 -10 -7 -5 -5 ------- Run | Yrd Mat Min Sub Scr Fac Ext Slots Evolved . | . . . . . . . Power . | . . . . . . . Propulsion . | . . . . . . . Utility . | . . . . . . . Weapon . | . . . . . . . Parts Attached . | . . . . . . . Power . | . . . . . . . Engine . | . . . . . . . Core . | . . . . . . . Reactor . | . . . . . . . Propulsion . | . . . . . . . Treads . | . . . . . . . Leg . | . . . . . . . Wheel . | . . . . . . . Hover . | . . . . . . . Flight . | . . . . . . . Utility . | . . . . . . . Device . | . . . . . . . Storage . | . . . . . . . Processor . | . . . . . . . Hackware . | . . . . . . . Protection . | . . . . . . . Artifact . | . . . . . . . Weapon . | . . . . . . . Energy Gun . | . . . . . . . Energy Cannon . | . . . . . . . Ballistic Gun . | . . . . . . . Ballistic Cannon . | . . . . . . . Launcher . | . . . . . . . Special Weapon . | . . . . . . . Impact Weapon . | . . . . . . . Slashing Weapon . | . . . . . . . Piercing Weapon . | . . . . . . . Special Melee Weapon . | . . . . . . . Unidentified Prototypes . | . . . . . . . Parts Lost 12 | . . . . . 7 5 Power 2 | . . . . . 1 1 Propulsion 6 | . . . . . 4 2 Utility 3 | . . . . . 2 1 Weapon 1 | . . . . . . 1 Highest Loss Streak 7 | . . . . . 7 5 To Critical Strikes . | . . . . . . . Average Backups . | . . . . . . . Power . | . . . . . . . Propulsion . | . . . . . . . Utility . | . . . . . . . Weapon . | . . . . . . . Tool/Special . | . . . . . . . Unused Backups . | . . . . . . . Power . | . . . . . . . Propulsion . | . . . . . . . Utility . | . . . . . . . Weapon . | . . . . . . . Tool/Special . | . . . . . . . Average Slot Usage (%) 58 | . 81 100 88 20 57 60 Engine 10 | . 11 15 14 3 12 8 Wheel 12 | . 23 31 29 6 3 16 Hover 8 | . . . . . 22 . Device 12 | . 23 31 29 6 2 17 Processor 5 | . 8 4 . . 6 9 Hackware 1 | . . . . . 4 . Special Weapon 5 | . 11 15 14 3 . 8 Special Melee Weapon 1 | . . . . . 4 . Peak Build Rating 12 | 8 8 8 8 8 12 8 Average Rating 5 | 6 6 8 7 1 5 4 On Entrance 4 | . 8 8 8 8 . . Naked Turns 343 | . 18 . 5 158 120 42 Heaviest Build 26 | 6 6 6 6 6 26 6 Greatest Support 64 | 20 20 20 20 20 64 20 Greatest Overweight (x) 8 | . . . . . 8 . Average Overweight (x) . | . . . . . . . Largest Inventory Capacity 6 | . . . . . 6 . Average Capacity . | . . . . . . . Most Carried . | . . . . . . . Average Carried . | . . . . . . . Final Capacity . | . . . . . . . Final Carried . | . . . . . . . Class Distribution -------------------- 40% | Cogmind 18% | Builder 17% | Tunneler 10% | Watcher 8% | Operator 4% | Recycler Dominant Class ---------------- Builder | -10/Materials Tunneler | -10/Mines Tunneler | -10/Subcaves Cogmind | -7/Scraptown Cogmind | -5/Factory Builder | -5/Extension Resources | -11 -10 -10 -10 -7 -5 -5 ----------- Run | Yrd Mat Min Sub Scr Fac Ext Matter Collected . | . . . . . . . Remotely . | . . . . . . . Salvage Created . | . . . . . . . Parts . | . . . . . . . Haulers Intercepted . | . . . . . . . Recyclers Shooed . | . . . . . . . Parts Field Recycled . | . . . . . . . Retrieved Matter . | . . . . . . . Parts Self-Destructed . | . . . . . . . Prevented . | . . . . . . . Kills | -11 -10 -10 -10 -7 -5 -5 ------- Run | Yrd Mat Min Sub Scr Fac Ext Combat Hostiles Destroyed . | . . . . . . . Classes Destroyed . | . . . . . . . Best Kill Streak . | . . . . . . . Combat Bots Only . | . . . . . . . Max Kills in Single Turn . | . . . . . . . Gunslinging . | . . . . . . . Exploded . | . . . . . . . Melee . | . . . . . . . Uniques/NPCs Destroyed . | . . . . . . . Combat | -11 -10 -10 -10 -7 -5 -5 -------- Run | Yrd Mat Min Sub Scr Fac Ext Hostile Shots Fired 113 | . 4 . . . 88 21 Missed 25 | . 1 . . . 21 3 Hits 88 | . 3 . . . 67 18 Melee 1 | . . . . . 1 . Projectile 87 | . 3 . . . 66 18 Critical Strikes 3 | . . . . . 3 . Damage Taken 1752 | . 122 . . . 1182 448 Core 1087 | . 86 . . . 748 253 Absorbed by Shields . | . . . . . . . Core Remaining (%) 82 | 100 . . . 65 . . Volleys Fired 3 | . 1 2 . . . . Largest 1 | . 1 1 . . . . Hottest 100 | . 20 100 . . . . Shots Fired 3 | . 1 2 . . . . Gun . | . . . . . . . Cannon . | . . . . . . . Launcher . | . . . . . . . Special 3 | . 1 2 . . . . Kinetic . | . . . . . . . Thermal 3 | . 1 2 . . . . Explosive . | . . . . . . . Electromagnetic . | . . . . . . . Robot Hit Streak . | . . . . . . . Robot Miss Streak . | . . . . . . . Penetration Max . | . . . . . . . Secondary Targets . | . . . . . . . Shots Hit Robots . | . . . . . . . Core Hits 4 | . . . . . 2 2 Critical Kills . | . . . . . . . Critical Parts Destroyed . | . . . . . . . Critical Strikes . | . . . . . . . Melee Attacks . | . . . . . . . Impact . | . . . . . . . Slashing . | . . . . . . . Piercing . | . . . . . . . Sneak Attacks . | . . . . . . . Combat Hostiles . | . . . . . . . Follow-up Attacks . | . . . . . . . Damage Inflicted 113 | . . . . . 61 52 Guns . | . . . . . . . Cannons . | . . . . . . . Explosions . | . . . . . . . Melee . | . . . . . . . Ramming 113 | . . . . . 61 52 Kinetic . | . . . . . . . Thermal . | . . . . . . . Explosive . | . . . . . . . Electromagnetic . | . . . . . . . Impact . | . . . . . . . Slashing . | . . . . . . . Piercing . | . . . . . . . Highest Corruption 4 | . 4 4 4 4 . 1 Average Corruption 3 | . 2 4 4 4 . 1 Corruption Purged . | . . . . . . . Corruption Blocked . | . . . . . . . Effects 2 | . . 1 1 . . . Data Loss (minor) 1 | . . . 1 . . . Alerts 1 | . . 1 . . . . Overload Shots . | . . . . . . . Overflow Damage . | . . . . . . . Projectiles . | . . . . . . . Explosions . | . . . . . . . Melee . | . . . . . . . Knockbacks . | . . . . . . . Impact . | . . . . . . . Kinetic . | . . . . . . . Secondary . | . . . . . . . Self-Inflicted Damage 50 | . . . . . 28 22 Shots . | . . . . . . . Rammed 27 | . . . . . 9 18 Targets Rammed 27 | . . . . . 9 18 Kicked . | . . . . . . . Crushed . | . . . . . . . Highest Temperature 155 | . 10 155 . . 51 37 Average Temperature 59 | . 5 104 . . 22 21 Received Heat Transfer 309 | . 21 . . . 171 117 Siege Activations . | . . . . . . . Martial Activations . | . . . . . . . Shielding Activations . | . . . . . . . Robots Disrupted . | . . . . . . . Combat Hostiles . | . . . . . . . Robots Corrupted . | . . . . . . . Combat Hostiles . | . . . . . . . Parts Fried . | . . . . . . . Impact Corruptions . | . . . . . . . Robots Melted . | . . . . . . . Combat Hostiles . | . . . . . . . Parts Melted . | . . . . . . . Heat Transferred . | . . . . . . . Parts Sabotaged . | . . . . . . . Parts Stolen . | . . . . . . . Parts Stripped . | . . . . . . . Power Chain Reactions . | . . . . . . . Alert | -11 -10 -10 -10 -7 -5 -5 ------- Run | Yrd Mat Min Sub Scr Fac Ext Maximum Alert Level . | . . . . . . . Low Security (%) 100 | 100 100 100 . . 100 100 Level 1 . | . . . . . . . Level 2 . | . . . . . . . Level 3 . | . . . . . . . Level 4 . | . . . . . . . Level 5 . | . . . . . . . High Security . | . . . . . . . Max Security . | . . . . . . . Peak Influence 35 | . . 1 . . 35 1 Initial 1 | . . . . . . 1 Average 3 | . . . . . 6 . Influence Increases 80 | . . 1 . . 79 . Successful Hack 4 | . . . . . 4 . Destroy Structure 1 | . . 1 . . . . Partial Spotted 30 | . . . . . 30 . Lose Combat Pursuer 45 | . . . . . 45 . Influence Decreases 80 | . . 1 . . 75 4 Entered New Map 3 | . . . . . . 3 Time Decay 61 | . . 1 . . 59 1 Lost Part 15 | . . . . . 15 . Miscellaneous 1 | . . . . . 1 . Squads Dispatched 4 | . . . . . 1 3 Investigation 2 | . . . . . . 2 Extermination . | . . . . . . . Reinforcement 2 | . . . . . 1 1 Assault . | . . . . . . . Garrison . | . . . . . . . Intercept . | . . . . . . . Searches Triggered . | . . . . . . . Construction Impeded . | . . . . . . . Haulers Reinforced . | . . . . . . . Active Scanning Responses . | . . . . . . . Cargo Convoy Interrupts . | . . . . . . . Stealth | -11 -10 -10 -10 -7 -5 -5 --------- Run | Yrd Mat Min Sub Scr Fac Ext Distress Signals 2 | . . . . . 2 . Communications Jammed . | . . . . . . . Distress Signals . | . . . . . . . Times Spotted 29 | . 4 . . . 20 5 Peak Tracking Total 12 | . 6 . . . 12 4 Tactical Retreats 2 | . . . . . 2 . Traps | -11 -10 -10 -10 -7 -5 -5 ------- Run | Yrd Mat Min Sub Scr Fac Ext Traps Triggered 2 | . 2 . . . . . Indirectly . | . . . . . . . Trap Hack Attempts . | . . . . . . . Triggered . | . . . . . . . Disarmed . | . . . . . . . Reprogrammed . | . . . . . . . Reused . | . . . . . . . Traps Extracted . | . . . . . . . Installed . | . . . . . . . Triggered . | . . . . . . . Machines | -11 -10 -10 -10 -7 -5 -5 ---------- Run | Yrd Mat Min Sub Scr Fac Ext Machines Disabled . | . . . . . . . Max in Single Turn . | . . . . . . . Machines Repaired . | . . . . . . . Machines Dismantled . | . . . . . . . Machines Sabotaged . | . . . . . . . Overloaded Fab Kills . | . . . . . . . Hacking | -11 -10 -10 -10 -7 -5 -5 --------- Run | Yrd Mat Min Sub Scr Fac Ext Machines Accessed 4 | . . . . . 2 2 Terminals 4 | . . . . . 2 2 Fabricators . | . . . . . . . Repair Stations . | . . . . . . . Recycling Units . | . . . . . . . Scanalyzers . | . . . . . . . Garrison Access . | . . . . . . . Total Hacks 9 | . . . . . 3 6 Successful 2 | . . . . . 2 . Failed 7 | . . . . . 1 6 Catastrophic 3 | . . . . . . 3 Database Lockouts . | . . . . . . . Manual . | . . . . . . . Terminals 9 | . . . . . 3 6 Fabricators . | . . . . . . . Repair Stations . | . . . . . . . Recycling Units . | . . . . . . . Scanalyzers . | . . . . . . . Garrison Access . | . . . . . . . Terminal Hacks 2 | . . . . . 2 . Record 1 | . . . . . 1 . Open Door 1 | . . . . . 1 . Fabricator Hacks . | . . . . . . . Repair Station Hacks . | . . . . . . . Recycling Unit Hacks . | . . . . . . . Scanalyzer . | . . . . . . . Garrison Access Hacks . | . . . . . . . Unauthorized Hacks . | . . . . . . . Terminals . | . . . . . . . Fabricators . | . . . . . . . Repair Stations . | . . . . . . . Recycling Units . | . . . . . . . Scanalyzers . | . . . . . . . Garrison Access . | . . . . . . . Data Cores Recovered . | . . . . . . . Used . | . . . . . . . Hacking Detections 3 | . . . . . 1 2 Full Trace Events 2 | . . . . . . 2 Feedback Events . | . . . . . . . Feedback Blocked . | . . . . . . . Robot Schematics Acquired . | . . . . . . . Robots Built . | . . . . . . . Authchips . | . . . . . . . Time . | . . . . . . . Total Robot Build Rating . | . . . . . . . Part Schematics Acquired . | . . . . . . . Parts Built . | . . . . . . . Authchips . | . . . . . . . Time . | . . . . . . . Total Part Build Rating . | . . . . . . . Parts Repaired . | . . . . . . . Time . | . . . . . . . Parts Recycled . | . . . . . . . Recycled Matter . | . . . . . . . Retrieved Matter . | . . . . . . . Retrieved Components . | . . . . . . . Parts Scanalyzed . | . . . . . . . Part Schematics Acquired . | . . . . . . . Parts Damaged . | . . . . . . . Bothacking | -11 -10 -10 -10 -7 -5 -5 ------------ Run | Yrd Mat Min Sub Scr Fac Ext Used RIF Installer . | . . . . . . . Robots Hacked 6 | . 1 . . . 3 2 Non-combat 6 | . 1 . . . 3 2 Combat . | . . . . . . . Robot Hacks Applied 7 | . 1 . . . 4 2 map_walls 3 | . 1 . . . . 2 find_recycling 1 | . . . . . 1 . find_terminals 1 | . . . . . 1 . map_route 1 | . . . . . 1 . mark_security 1 | . . . . . 1 . Relay Couplers Released . | . . . . . . . Fabnet Peak Effective % . | . . . . . . . Robots Rewired . | . . . . . . . Allies Hacked . | . . . . . . . Hacks Repelled . | . . . . . . . Allies | -11 -10 -10 -10 -7 -5 -5 -------- Run | Yrd Mat Min Sub Scr Fac Ext Total Allies . | . . . . . . . Largest Group . | . . . . . . . Highest-Rated Group . | . . . . . . . Highest-Rated Ally . | . . . . . . . Total Orders . | . . . . . . . Ally Attacks . | . . . . . . . Total Damage . | . . . . . . . Kills . | . . . . . . . Allies Corrupted . | . . . . . . . Allies Melted . | . . . . . . . Intel | -11 -10 -10 -10 -7 -5 -5 ------- Run | Yrd Mat Min Sub Scr Fac Ext Active Infowar (turns) 495 | 92 84 56 73 30 94 66 Optics 94 | . . . . . 94 . Terrain 391 | 92 84 56 73 30 . 56 Structural 156 | . 74 16 . . . 66 Seismic 245 | 92 10 40 73 30 . . Robot Analysis Total 5 | 1 1 . . . 3 . Derelict Logs Recovered 1 | . . . 1 . . . Drone Launches . | . . . . . . . Drone Recoveries . | . . . . . . . Exploration | -11 -10 -10 -10 -7 -5 -5 ------------- Run | Yrd Mat Min Sub Scr Fac Ext Turns Passed 961 | 106 102 56 78 188 323 108 Spaces Moved 1379 | 89 133 56 102 353 508 138 Core 651 | 27 35 . 11 316 187 75 Treads . | . . . . . . . Legs . | . . . . . . . Wheels 434 | 62 98 56 91 37 27 63 Hover 294 | . . . . . 294 . Flight . | . . . . . . . Fastest Speed 50 | 50 50 80 50 50 50 50 Average Speed 61 | 70 72 80 76 53 57 63 Slowest Speed 450 | 80 80 80 80 80 450 80 Overloaded Moves . | . . . . . . . Propulsion Burnouts . | . . . . . . . Robots Hopped . | . . . . . . . Potential Cave-ins . | . . . . . . . Cave-ins Triggered . | . . . . . . . Exploration Rate (%) 21 | 7 29 22 14 33 19 25 Regions Visited 6 Branch Regions 4 Pre-discovered Areas . | . . . . . . . Known Exits Taken . | . . . . . . . Unknown Exits Taken 6 | 1 1 1 1 1 1 . Scrap Searched 2 | . . . . 2 . . Spaces Dug 2 | . . 2 . . . . Terrain Destroyed 2 | . . 2 . . . . Melee . | . . . . . . . Projectile 2 | . . 2 . . . . AOE . | . . . . . . . Terrain Rammed . | . . . . . . . Walls Destroyed . | . . . . . . . Machines Disabled . | . . . . . . . Actions | -11 -10 -10 -10 -7 -5 -5 --------- Run | Yrd Mat Min Sub Scr Fac Ext Total 1486 | 131 145 60 101 352 539 158 Wait 27 | . 2 . . . 23 2 Move 1373 | 88 132 55 101 352 507 138 Hop . | . . . . . . . Pick Up . | . . . . . . . Fast Attach . | . . . . . . . Attach . | . . . . . . . Detach . | . . . . . . . Swap . | . . . . . . . Drop . | . . . . . . . Fire 3 | . 1 2 . . . . Melee . | . . . . . . . Ram 27 | . . . . . 9 18 Kick . | . . . . . . . Crush . | . . . . . . . Escape Stasis . | . . . . . . . Rewire . | . . . . . . . Trap . | . . . . . . . Miscellaneous 56 | 43 10 3 . . . . Route ------- -11/Scrapyard -10/Materials -10/Mines -10/Subcaves -7/Scraptown -5/Factory (discovered 2 exits: [Fac] / *Ext) -5/Extension History --------- Turn | Location | Event 4 | -11/Scrapyard | Discovered new exit (range 14) 107 | -11/Scrapyard | Entered Materials 203 | -10/Materials | Discovered new exit (range 9) 209 | -10/Materials | Entered Mines 238 | -10/Mines | Assembled infested the area 262 | -10/Mines | Discovered new exit (range 3) 265 | -10/Mines | Entered Subcaves 266 | -10/Subcaves | Approached by a straggling Scientist 310 | -10/Subcaves | Learned 2 Materials zone layouts 336 | -10/Subcaves | Scientist uncovered a shortcut to Scraptown 343 | -10/Subcaves | Entered Scraptown 345 | -7/Scraptown | System corruption cleaned by C-Scrubber 427 | -7/Scraptown | Visited UFD Registry 427 | -7/Scraptown | Registered with UFD as "Autothruster" 448 | -7/Scraptown | Visited Junk Repository 499 | -7/Scraptown | Met Optimus 499 | -7/Scraptown | Accepted into 0bPrime 528 | -7/Scraptown | Discovered new exit (range 5) 530 | -7/Scraptown | Civil war broke out across Scraptown 531 | -7/Scraptown | Entered Factory 550 | -5/Factory | Discovered new exit (range 161) 724 | -5/Factory | Core integrity fell below 50% 747 | -5/Factory | Lost 7 parts (1p4n2u) 852 | -5/Factory | Discovered new exit (range 6) 854 | -5/Factory | Entered Extension 951 | -5/Extension | Core integrity fell below 20% 962 | -5/Extension | Destroyed by G-50 Soldier with Heavy Laser Last Messages --------------- 00938_ Took control of U-05 Engineer. 00946_ Slammed into G-50 Soldier. 00946_ Destabilizing: System interference. 00946_ Terrain Scan Processor temporarily disabled. 00947_ Slammed into G-50 Soldier. 00950_ Welding Torch destroyed. 00951_ Slammed into Y-64 Sentinel. 00952_ Wheel destroyed. 00952_ Slammed into Y-64 Sentinel. 00952_ Terrain Scanner destroyed. 00953_ Slammed into Y-64 Sentinel. 00954_ Lgt. Ion Engine destroyed. 00955_ Penetrated by Slug. 00955_ Slammed into Y-64 Sentinel. 00957_ Wheel destroyed. 00957_ Slammed into Y-64 Sentinel. 00959_ Destabilizing: System corrupted (+1). 00960_ Penetrated by Slug. 00960_ Slammed into Y-64 Sentinel. 00961_ Destabilizing: Core damaged (-50). Map ----- +----------------------------------------------------+ | ????????????????????????????#????????????????????? | | ?????????????#######?????????????????????????????? | | ###??????????#?????#??????????#??????????????????? | | ############## #?????????????????????????????? | | T #?????????????????????????????? | | ###### #???????#?????????????????????? | | #????# ? ??#????????????#????????????????? | | """" #??#########?????????????????????????????? | | """"" ####################?????????????????????? | | ##### ############?????????????????????? | | = ##??#?#????????????????? | | ######## #### ######### ##?????????????????????? | | ##?????# T###############g##??#??????????????????? | | ???????#"########??????## ##?????????????????????? | | ???????????????????????##%##?????????????????????? | | ???????????????????????##g##???????? ????????????? | | ?????????#?????????????##g###????????????????????? | | ?????????????????#???####%##?????????????????????? | | ?????????????????????####%##?????????????????????? | | ?????????????????????## # ##?????????????????????? | | ?????????????????#??? " ##?????????????????????? | | ????????????????#???? " #%##?????????????????????? | | ?????????????????????##T# ##?????????????????????? | | ?????????????????????####%##?????????????????????? | | ?????????????????????#### ##?????????????????????? | | ???????????????????????##u##????#????????????????? | | ???????????????????????##Y##?????????????????????? | | ???????????????????????## ##?????????????????????? | | ???????????????????????## ##?????????????????????? | | ???????????????????????## ##?????????????????????? | | ???????????????????????## ##?????????????????????? | | ???????????????????????"" ""?????????????????????? | | ????????????????????????" "??????????????????????? | | ???????????????????????? ??????????????????????? | | ???????????????????????? ??????????????????????? | | ???????????????????????? ??????????????????????? | | ???????????????????????? ??????????????????????? | | ????????????????????????? ???????????????????????? | | ????????????????????????? ???????????????????????? | | ?????????????????????????????????????????????????? | | ?????????????????????????????????????????????????? | | ?????????????????????????????????????????????????? | | ?????????????????????????????????????????????????? | | ?????????????????????????????????????????????????? | | ?????????????????????????????????????????????????? | | ?????????????????????????????????????????????????? | | ?????????????????????????????????????????????????? | | ?????????????????????????????????????????????????? | | ?????????????????????????????????????????????????? | | | +----------------------------------------------------+ Best States ------------- Heat Dissipation 40 Energy Generation 19 Energy Capacity 190 Sight Range 18 Terrain Scan Range 16 Terrain Scan Density 85 Evasion (%) 53 Offensive Hacking 10 Item Schematics ----------------- None Robot Schematics ------------------ None Fabricated ------------ Nothing Repaired ---------- Nothing Alien Tech Used ----------------- None Achievements -------------- None Challenges ------------ None Polymind | -11 -10 -10 -10 -7 -5 -5 ---------- Run | Yrd Mat Min Sub Scr Fac Ext Hosts 9 | 1 1 1 1 . 3 2 Combat Hostiles . | . . . . . . . Allies . | . . . . . . . Unique Host Classes 5 | 1 1 . . . 3 . Average Host Suspicion 38 | . 34 33 . . 72 61 Unsuspicious Activity 270 | 217 12 17 2 . 18 4 Returns to Shadow . | . . . . . . . Fuzzy Dispatches . | . . . . . . . Protomatter Created 10 | . . 10 . . . . Used 63 | 5 5 5 5 . 33 10 Decayed . | . . . . . . . Highest Spend 23 | 5 5 5 5 . 23 5 Game ------ Seed DamperSpectralMembrane Manual? 0 Play Time 00:10:20 Cumulative 124.0 hours Start 2025.06.08 @ 16:18:15 End 2025.06.08 @ 16:27:46 Sessions 1 Manual Loads 0 Difficulty Rogue Special Mode Winter2022/Polymind Game No. 322 Rogue 322 Adventurer 0 Explorer 0 Win Type - Total 3 Types 2/0/1/0/0/0/0/0/0/0 Lore% 61 Gallery% 53 Achievement% 45 Wizard Run 0 Options --------- Layout 0 ASCII 0 Keyboard 0 Movement Numpad Keybinds 0 Fullscreen 2 Font 18/Terminus Map View 76x50 Zoom Use 0% Tactical HUD 1 Map Filters NONE Filters NONE Steam 1 RUN: 2f498dc1-e14f-435c-ad9b-7dc447f97685